Cogmind - Beta 16.1 @@@ ROGUE MODE // 2026.04.10 @ 15:37:22 Player: Ammie Result: Destroyed by Y-45 Defender with Heavy Assault Rifle Performance ------------- Evolutions (1) 500 Regions Visited (2) 400 Robots Destroyed (56) 280 Value Destroyed (1155) 1155 Prototype IDs (4) 80 Alien Tech Used (0) 0 Bonus (0) 0 TOTAL SCORE: 2415 Bonus ------- None Cogmind --------- Core Integrity 0/400 Matter 265/300 Energy 229/250 System Corruption 0% Temperature Warm (100) Movement Flying (29) Location -9/Materials Parts ------- > --- POWER (1) -------- Ion Engine > --- PROPULSION (4) --- Flight Unit Flight Unit VTOL Module Improved Flight Unit > --- UTILITY (2) ------ Heat Sink Small Storage Unit > --- WEAPON (2) ------- Field Laser Advanced Beam Cannon > --- INVENTORY (8) ---- Ion Engine Light Ion Engine Particle Charger Particle Charger Particle Charger Field Laser Light EM Pulse Cannon Grenade Launcher Peak State ------------ > --- POWER ------------ Cooled Ion Engine > --- PROPULSION ------- Flight Unit Flight Unit VTOL Module Improved Flight Unit > --- UTILITY ---------- Heat Sink Small Storage Unit > --- WEAPON ----------- Field Laser Advanced Beam Cannon > --- INVENTORY -------- Ion Engine Light Ion Engine Particle Charger Particle Charger Particle Charger Field Laser Light EM Pulse Cannon Grenade Launcher [Rating: 19] Favorites ----------- Power Light Ion Engine Engine Light Ion Engine Propulsion VTOL Module Leg Aluminum Leg Hover Unit Hover Unit Flight Unit VTOL Module Utility Small Storage Unit Device Heat Sink Storage Small Storage Unit Weapon Light EM Pulse Cannon Energy Gun Field Laser Energy Cannon Light EM Pulse Cannon Ballistic Gun Autogun Ballistic Cannon Light Cannon Launcher Grenade Launcher Build | -11 -10 -9 ------- Run | Yrd Mat Mat Slots Evolved 2 | . . 2 Power . | . . . Propulsion 2 | . . 2 Utility . | . . . Weapon . | . . . Parts Attached 36 | 6 12 18 Power 7 | 1 3 3 Engine 7 | 1 3 3 Core . | . . . Reactor . | . . . Propulsion 13 | 2 5 6 Treads . | . . . Leg 3 | 2 . 1 Wheel . | . . . Hover 1 | . . 1 Flight 9 | . 5 4 Utility 2 | 1 . 1 Device 1 | . . 1 Storage 1 | 1 . . Processor . | . . . Hackware . | . . . Protection . | . . . Artifact . | . . . Weapon 14 | 2 4 8 Energy Gun 4 | . . 4 Energy Cannon 4 | . 3 1 Ballistic Gun 3 | 2 . 1 Ballistic Cannon 1 | . 1 . Launcher 2 | . . 2 Special Weapon . | . . . Impact Weapon . | . . . Slashing Weapon . | . . . Piercing Weapon . | . . . Special Melee Weapon . | . . . Unidentified Prototypes 4 | . . 4 Parts Lost 10 | . 6 4 Power 3 | . 2 1 Propulsion 5 | . 4 1 Utility . | . . . Weapon 2 | . . 2 Highest Loss Streak 3 | . 2 3 To Critical Strikes . | . . . Average Backups 6 | 1 6 7 Power 1 | . 1 1 Propulsion . | . . . Utility 1 | . . 2 Weapon 3 | . 4 2 Tool/Special . | . . . Unused Backups 8 | . 2 6 Power 1 | . . 1 Propulsion 1 | . 1 . Utility 3 | . . 3 Weapon 3 | . 1 2 Tool/Special . | . . . Average Slot Usage (%) 73 | . 75 71 Engine 12 | . 13 10 Flight 17 | . 18 17 Device 4 | . . 8 Storage 12 | . 14 11 Energy Gun 3 | . . 6 Energy Cannon 11 | . 17 6 Ballistic Gun 1 | . . 2 Ballistic Cannon 5 | . 9 1 Launcher 2 | . . 4 Peak Build Rating 19 | 6 11 19 Average Rating 10 | 4 7 13 On Entrance 4 | . 6 6 Avg Prop Armor Cover (%) 4 | . 8 4 Naked Turns . | . . . Heaviest Build 21 | 14 18 21 Greatest Support 20 | 20 20 19 Greatest Overweight (x) 4 | 4 4 4 Average Overweight (x) 1 | . 2 1 Largest Inventory Capacity 8 | 8 8 8 Average Capacity 7 | 7 8 8 Most Carried 8 | 2 8 8 Average Carried 6 | 1 6 7 Final Capacity 8 | 8 8 8 Final Carried 8 | 2 6 8 Class Distribution -------------------- 91% | Mutant 5% | Sprinter Dominant Class ---------------- Mutant | -10/Materials Mutant | -9/Materials Resources | -11 -10 -9 ----------- Run | Yrd Mat Mat Matter Collected 981 | 197 306 478 Remotely . | . . . Salvage Created 1663 | . 639 1024 Parts 112 | . 39 73 Haulers Intercepted 5 | . 1 4 Recyclers Shooed . | . . . Parts Field Recycled . | . . . Retrieved Matter . | . . . Parts Self-Destructed . | . . . Prevented . | . . . Parts Restored . | . . . Kills | -11 -10 -9 ------- Run | Yrd Mat Mat Combat Hostiles Destroyed 33 | . 14 19 Guns 9 | . . 9 Cannons 17 | . 13 4 AOE 6 | . . 6 Classes Destroyed 10 | . 6 4 Worker 5 | . . 5 Builder 3 | . 1 2 Tunneler 1 | . . 1 Hauler 5 | . 1 4 Recycler 2 | . 2 . Operator 1 | . . 1 Watcher 6 | . 1 5 Swarmer 12 | . 8 4 Grunt 17 | . 6 11 Sentry 4 | . . 4 Best Kill Streak 4 | . 4 4 Combat Bots Only 3 | . 3 3 Max Kills in Single Turn 2 | . 2 2 Gunslinging . | . . . Exploded 1 | . . 1 Melee . | . . . Uniques/NPCs Destroyed . | . . . Combat | -11 -10 -9 -------- Run | Yrd Mat Mat Hostile Shots Fired 186 | . 97 89 Missed 45 | . 24 21 Hits 141 | . 73 68 Projectile 141 | . 73 68 Critical Strikes 4 | . 1 3 Damage Taken 1672 | . 794 878 Core 657 | . 242 415 Absorbed by Shields . | . . . Core Remaining (%) 51 | 100 3 . Volleys Fired 107 | . 42 65 Largest 2 | . 2 2 Hottest 131 | . 112 131 Shots Fired 194 | . 85 109 Gun 61 | . . 61 Cannon 115 | . 85 30 Launcher 18 | . . 18 Special . | . . . Kinetic 49 | . 25 24 Thermal 63 | . . 63 Explosive 18 | . . 18 Electromagnetic 64 | . 60 4 Robot Hit Streak 12 | . 12 8 Robot Miss Streak 4 | . 4 3 Penetration Max . | . . . Secondary Targets 1 | . . 1 Max Gunslinging Chain 1 | . . 1 Shots Hit Robots 93 | . 37 56 Core Hits 68 | . 20 48 Critical Kills . | . . . Critical Parts Destroyed . | . . . Critical Strikes 2 | . . 2 Burn 2 | . . 2 Melee Attacks . | . . . Impact . | . . . Slashing . | . . . Piercing . | . . . Sneak Attacks . | . . . Combat Hostiles . | . . . Follow-up Attacks . | . . . Damage Inflicted 2882 | . 1049 1833 Guns 724 | . . 724 Cannons 1213 | . 864 349 Explosions 945 | . 185 760 Melee . | . . . Ramming . | . . . Kinetic 390 | . 161 229 Thermal 990 | . 185 805 Explosive 714 | . . 714 Electromagnetic 788 | . 703 85 Impact . | . . . Slashing . | . . . Piercing . | . . . Highest Corruption 3 | . 3 . Average Corruption 2 | . 2 . Corruption Purged . | . . . Corruption Blocked . | . . . Effects 10 | . 10 . Message Errors 1 | . 1 . Matter Fused 5 | . 5 . Heat Flow Errors 1 | . 1 . Energy Discharges 1 | . 1 . Data Loss (minor) 1 | . 1 . Misfires 1 | . 1 . Overload Shots . | . . . Overflow Damage 10 | . 4 6 Projectiles . | . . . Explosions 10 | . 4 6 Melee . | . . . Knockbacks 2 | . 2 . Impact . | . . . Kinetic 2 | . 2 . Secondary . | . . . Self-Inflicted Damage 45 | . 36 9 Shots 3 | . 2 1 Rammed . | . . . Targets Rammed . | . . . Kicked . | . . . Crushed . | . . . Highest Temperature 318 | . 318 246 Average Temperature 71 | . 72 68 Received Heat Transfer 600 | . 225 375 Effects 1 | . 1 . Damage (minor) 1 | . 1 . Siege Activations . | . . . Martial Activations . | . . . Shielding Activations . | . . . Robots Disrupted . | . . . Combat Hostiles . | . . . Robots Corrupted 1 | . 1 . Combat Hostiles 1 | . 1 . Parts Fried 4 | . 4 . Impact Corruptions . | . . . Robots Melted . | . . . Combat Hostiles . | . . . Parts Melted 1 | . . 1 Heat Transferred 2002 | . 250 1752 Parts Sabotaged . | . . . Parts Stolen . | . . . Parts Stripped . | . . . Power Chain Reactions 4 | . 3 1 Alert | -11 -10 -9 ------- Run | Yrd Mat Mat Maximum Alert Level 1 | . 1 1 Low Security (%) 66 | 100 55 75 Level 1 33 | . 44 24 Level 2 . | . . . Level 3 . | . . . Level 4 . | . . . Level 5 . | . . . High Security . | . . . Max Security . | . . . Peak Influence 367 | . 305 367 Initial 66 | . . 66 Average 140 | . 157 134 Influence Increases 1412 | . 606 806 Destroy 0b10 Robot/C 660 | . 280 380 Destroy 0b10 Robot/NC 115 | . 25 90 Destroy Leader 192 | . 64 128 Successful Hack 4 | . . 4 Disable Machine 135 | . 60 75 Destroy Structure 81 | . 12 69 Partial Spotted 15 | . . 15 Lose Combat Pursuer 210 | . 165 45 Influence Decreases 1045 | . 448 597 Entered New Map 92 | . . 92 Time Decay 863 | . 388 475 Lost Part 90 | . 60 30 Squads Dispatched 7 | . 2 5 Investigation 2 | . 1 1 Extermination . | . . . Reinforcement 5 | . 1 4 Assault . | . . . Garrison . | . . . Intercept . | . . . Searches Triggered . | . . . Construction Impeded 1 | . . 1 Haulers Reinforced . | . . . Active Scanning Responses . | . . . Cargo Convoy Interrupts . | . . . Stealth | -11 -10 -9 --------- Run | Yrd Mat Mat Distress Signals 3 | . 1 2 Communications Jammed . | . . . Distress Signals . | . . . Times Spotted 61 | . 27 34 Peak Tracking Total 4 | . 4 4 Tactical Retreats 6 | . 5 1 Traps | -11 -10 -9 ------- Run | Yrd Mat Mat Traps Triggered 7 | . 5 2 Indirectly . | . . . Trap Hack Attempts . | . . . Triggered . | . . . Disarmed . | . . . Reprogrammed . | . . . Reused . | . . . Traps Extracted . | . . . Installed . | . . . Triggered . | . . . Machines | -11 -10 -9 ---------- Run | Yrd Mat Mat Machines Disabled 9 | . 4 5 Max in Single Turn 2 | . 1 2 Machines Repaired . | . . . Machines Dismantled . | . . . Machines Sabotaged . | . . . Overloaded Fab Kills . | . . . Hacking | -11 -10 -9 --------- Run | Yrd Mat Mat Machines Accessed 2 | . 1 1 Terminals 1 | . 1 . Fabricators . | . . . Repair Stations . | . . . Recycling Units . | . . . Scanalyzers 1 | . . 1 Garrison Access . | . . . Total Hacks 4 | . 1 3 Successful 2 | . . 2 Failed 2 | . 1 1 Catastrophic 1 | . 1 . Database Lockouts . | . . . Manual . | . . . Terminals 1 | . 1 . Fabricators . | . . . Repair Stations . | . . . Recycling Units . | . . . Scanalyzers 3 | . . 3 Garrison Access . | . . . Terminal Hacks . | . . . Fabricator Hacks . | . . . Repair Station Hacks . | . . . Recycling Unit Hacks . | . . . Scanalyzer 2 | . . 2 Retrieve Study 2 | . . 2 Garrison Access Hacks . | . . . Unauthorized Hacks . | . . . Terminals . | . . . Fabricators . | . . . Repair Stations . | . . . Recycling Units . | . . . Scanalyzers . | . . . Garrison Access . | . . . Data Cores Recovered . | . . . Used . | . . . Hacking Detections 2 | . 1 1 Full Trace Events 1 | . . 1 Feedback Events . | . . . Feedback Blocked . | . . . Robot Schematics Acquired . | . . . Robots Built . | . . . Authchips . | . . . Time . | . . . Total Robot Build Rating . | . . . Part Schematics Acquired . | . . . Parts Built . | . . . Authchips . | . . . Time . | . . . Total Part Build Rating . | . . . Part Studies Acquired 2 | . . 2 Parts Repaired . | . . . Time . | . . . Parts Recycled . | . . . Recycled Matter . | . . . Retrieved Matter . | . . . Retrieved Components . | . . . Parts Scanalyzed . | . . . Part Schematics Acquired . | . . . Parts Damaged . | . . . Bothacking | -11 -10 -9 ------------ Run | Yrd Mat Mat Used RIF Installer . | . . . Robots Hacked . | . . . Non-combat . | . . . Combat . | . . . Robot Hacks Applied . | . . . Relay Couplers Released . | . . . Fabnet Peak Effective % . | . . . Robots Rewired . | . . . Allies Hacked . | . . . Hacks Repelled . | . . . Allies | -11 -10 -9 -------- Run | Yrd Mat Mat Total Allies . | . . . Largest Group . | . . . Highest-Rated Group . | . . . Highest-Rated Ally . | . . . Total Orders . | . . . Ally Attacks . | . . . Total Damage . | . . . Kills . | . . . Allies Corrupted . | . . . Allies Melted . | . . . Intel | -11 -10 -9 ------- Run | Yrd Mat Mat Active Infowar (turns) . | . . . Robot Analysis Total . | . . . Derelict Logs Recovered . | . . . Drone Launches . | . . . Drone Recoveries . | . . . Exploration | -11 -10 -9 ------------- Run | Yrd Mat Mat Turns Passed 2589 | 93 1230 1266 Spaces Moved 1185 | 64 531 590 Core 58 | 14 44 . Treads . | . . . Legs 65 | 50 15 . Wheels . | . . . Hover 36 | . . 36 Flight 1026 | . 472 554 Fastest Speed 29 | 50 112 29 Average Speed 177 | 129 194 167 Slowest Speed 365 | 250 365 360 Overloaded Moves . | . . . Propulsion Burnouts . | . . . Robots Hopped . | . . . Potential Cave-ins . | . . . Cave-ins Triggered . | . . . Exploration Rate (%) 41 | 4 67 54 Regions Visited 2 Branch Regions . Pre-discovered Areas . | . . . Known Exits Taken . | . . . Unknown Exits Taken 2 | 1 1 . Scrap Searched . | . . . Spaces Dug . | . . . Terrain Destroyed 101 | . 9 92 Melee . | . . . Projectile . | . . . AOE 101 | . 9 92 Terrain Rammed . | . . . Walls Destroyed . | . . . Machines Disabled . | . . . Actions | -11 -10 -9 --------- Run | Yrd Mat Mat Total 1470 | 71 644 755 Wait 107 | . 44 63 Move 1183 | 63 530 590 Hop . | . . . Pick Up 20 | 2 11 7 Fast Attach 17 | 6 . 11 Attach 8 | . 5 3 Detach . | . . . Swap 20 | . 9 11 Drop 8 | . 3 5 Fire 107 | . 42 65 Melee . | . . . Ram . | . . . Kick . | . . . Crush . | . . . Escape Stasis . | . . . Rewire . | . . . Trap . | . . . Miscellaneous . | . . . Route ------- -11/Scrapyard -10/Materials (discovered 3 exits: *Mat / [*Min x2]) -9/Materials (discovered 2 exits: [*Mat] / [*Min]) History --------- Turn | Location | Event 30 | -11/Scrapyard | Discovered new exit (range 15) 94 | -11/Scrapyard | Entered Materials 311 | -10/Materials | Build established: Mutant 329 | -10/Materials | Discovered new exit (range 13) 419 | -10/Materials | Core integrity fell below 50% 516 | -10/Materials | Discovered new exit (range 14) 621 | -10/Materials | Discovered new exit (range 15) 676 | -10/Materials | Core integrity fell below 20% 1324 | -10/Materials | Entered another Materials area 1324 | -9/Materials | Evolved 2 slots: Propulsion x2 1590 | -9/Materials | Core integrity fell below 50% 1621 | -9/Materials | Lost 3 parts (1n2w) 1659 | -9/Materials | Discovered new exit (range 14) 1938 | -9/Materials | Core integrity fell below 20% 2558 | -9/Materials | Discovered new exit (range 14) 2590 | -9/Materials | Destroyed by Y-45 Defender with Heavy Assault Rifle Last Messages --------------- 02460_ Acquired VTOL Module. 02475_ Cld. Ion Engine destroyed. 02475_ Terminal disabled. 02478_ G-34 Mercenary destroyed. 02484_ Acquired 33 matter. 02491_ O-16 Technician: "IFF HANDSHAKE FAILED. SECURING TERMINAL." 02501_ ALERT: Hostiles spotted, dispatching reinforcements to Terminal M010. 02538_ Heat Sink melted. 02538_ G-34 Mercenary destroyed. 02543_ R-06 Scavenger collects Ion Engine. 02545_ G-34 Mercenary destroyed. 02546_ R-06 Scavenger collects Aluminum Leg. 02549_ Acquired 42 matter. 02549_ Acquired 37 matter. 02550_ Acquired Ion Engine. 02558_ EXIT=FOUND 02582_ S-10 Pest destroyed. 02584_ A-02 Transporter destroyed. 02587_ Acquired 48 matter. Map ----- +----------------------------------------------------+ | | | | | | | | | ?????????????????????????????????????????????????? | | ??????######?????????????????????????????????????? | | ??????# #?????????????????????????????????????? | | ??????# #?????????????????????????????????????? | | ####### ############??????????????????????????? | | + + #??????????????????????????? | | #####=# ########## #??????????????????????????? | | #???# #######???????# #??????????????????????????? | | #???#= [ #???????# #??????????????????????????? | | #???####### #???????# #??????????????????????????? | | ????????### ###???### ###???????#????????????????? | | ????????# ##### [ #???? #????????????????? | | ????????# ### #????????????????? | | ????????# T T #????????????????? | | ????????# ### #????????????????? | | ????????# ##### #???? #????????????????? | | ????????## ## #### ##???????#????????????????? | | ?????????# # # ############+###??????????? | | ?????????# / *# #??????????? | | ??###+#### # + ! =+%?????????? | | ### # """ # !! ! #??????????? | | # """ ######@#####+###+?????????????? | | # """ #????#!! ?????????????????????? | | """ # #????#Y= [???????????????????? | | Y" # #???? a ?????????????????? | | """ ###### "" #????# ""#???????????????? | | ##???# """ #????# ""#???????????????? | | *#????# S" #????# T"#???????????????? | | #????# #????# ""#???????????????? | | """ #????#######????# ""#???????????????? | | """ ##########??????? ????????????????? | | ^""" * # #???????####;####???????????????? | | """ [# """ #??????????? #??????????????????? | | # """ #??????????? ??????????????????? | | # """ #????????????#??????????????????? | | """ # """ #???????????????????????????????? | | """ # """ #???????????????????????????????? | | %""" !#! #???????????????????????????????? | | """ #%[ " #???????????????????????????????? | | #! % #???????????????????????????????? | | ##+#######???????????????????????????????? | | """ != ! #########????????????????????????? | | """ %! # #????????????????????????? | | """ + #????????????????????????? | | ! """ # #????????????????????????? | | #### #########????????????????????????? | +----------------------------------------------------+ Best States ------------- Heat Dissipation 38 Energy Generation 14 Energy Capacity 280 Matter Stores 300 Matter Capacity 300 Sight Range 16 Terrain Scan Density 10 Evasion (%) 64 Item Schematics ----------------- None Robot Schematics ------------------ None Fabricated ------------ Nothing Repaired ---------- Nothing Studied --------- Hover Unit | -9/Materials | Hacked Flight Unit | -9/Materials | Hacked Alien Tech Used ----------------- None Achievements -------------- None Challenges ------------ None Game ------ Seed WaveBlastStripper Manual? 0 Play Time 00:16:54 Cumulative 49.0 hours Start 2026.04.10 @ 01:00:56 End 2026.04.10 @ 15:37:22 Sessions 3 Manual Loads 0 Difficulty Rogue Special Mode None Game No. 85 Rogue 85 Adventurer 0 Explorer 0 Win Type - Total 0 Types 0/0/0/0/0/0/0/0/0/0 Lore% 20 Gallery% 25 Achievement% 21 Wizard Run 0 Options --------- Layout 0 ASCII 0 Keyboard 0 Movement Mouse Keybinds 0 Fullscreen 1 Font 24/Smallcaps Map View 38x25 Zoom Use 99% Tactical HUD 1 Map Filters NONE Filters NONE Steam 1 RUN: 67f615cb-2ad7-4d3d-98c7-09ae01cc85d0